bitfinex/quotes_BTCUSD_20260104
["timestamp","ask_amount","ask_price","bid_price","bid_amount"]
[1767522240427,0.05505307,91422.0,91420.0,0.0001504]
[1767522240627,0.00036151,91422.0,91420.0,0.05484293]
[1767522241093,0.00036151,91422.0,91420.0,0.0001504]
[1767522241426,0.05505339,91422.0,91420.0,0.0001504]
[1767522241650,0.06563188,91419.0,91415.0,0.06583457]
[1767522242429,0.06563188,91419.0,91415.0,0.06583434]
[1767522242630,0.06563188,91419.0,91416.0,0.054695]
[1767522242851,0.06563195,91419.0,91416.0,0.06563397]
[1767522243058,0.06563195,91419.0,91416.0,0.06563381]
[1767522243575,0.06563266,91418.0,91415.0,0.06583434]
[1767522243775,0.01093876,91418.0,91415.0,0.06583434]
[1767522243988,0.06563142,91420.0,91416.0,0.010939]
[1767522244302,0.04684546,91422.0,91417.0,0.0108948]
[1767522244549,0.05469251,91421.0,91417.0,0.06558913]
[1767522244742,0.05469276,91420.0,91417.0,0.06558913]
[1767522245334,0.06563091,91421.0,91418.0,0.06563253]
[1767522245886,0.06563091,91421.0,91418.0,0.01093876]
[1767522246087,0.05469272,91420.0,91417.0,0.0108948]
[1767522246386,0.06563135,91420.0,91417.0,0.0108948]
[1767522246762,0.05469324,91419.0,91416.0,0.06563291]
[1767522246961,0.11247547,91422.0,91419.0,0.000468]
[1767522247247,0.05469252,91421.0,91419.0,0.000468]
[1767522247469,0.05469252,91421.0,91418.0,0.01093876]
[1767522247855,0.06563092,91421.0,91418.0,0.01093876]
[1767522248057,0.06563092,91421.0,91417.0,0.06563278]
[1767522248257,0.06563092,91421.0,91418.0,0.0656321]
[1767522248258,0.0109384,91421.0,91418.0,0.0656321]
[1767522248429,0.06599236,91422.0,91418.0,0.0656321]
[1767522248832,0.06563055,91421.0,91417.0,0.0656332]
[1767522249414,0.06563055,91421.0,91418.0,0.05469374]
[1767522249661,0.06563055,91421.0,91417.0,0.0656332]
[1767522249662,0.06563139,91420.0,91417.0,0.01093888]
[1767522249854,0.000531,91418.0,91416.0,0.06558994]
[1767522250065,0.0099997,91417.0,91415.0,0.05489508]
[1767522250271,0.01093864,91419.0,91416.0,0.010939]
[1767522250390,0.01093864,91419.0,91416.0,0.06563353]
[1767522250804,0.04648395,91420.0,91418.0,0.05469331]
[1767522251013,0.04648395,91420.0,91417.0,0.06563315]
[1767522251573,0.04648395,91420.0,91418.0,0.05469368]
[1767522252259,0.04648395,91420.0,91418.0,0.0546937]
[1767522252932,0.04648395,91420.0,91419.0,0.05469322]
[1767522253365,0.04548495,91420.0,91419.0,0.05469322]
[1767522253684,0.04548495,91420.0,91418.0,0.0546937]
[1767522253882,0.00036151,91422.0,91419.0,0.01093864]
[1767522254109,0.00036151,91422.0,91415.0,0.21898242]
[1767522254110,0.01093876,91418.0,91415.0,0.0002]
[1767522254267,0.0656331,91418.0,91415.0,0.0002]
[1767522254822,0.06563262,91418.0,91415.0,0.01113912]
[1767522255232,0.01093876,91418.0,91415.0,0.06483529]
[1767522255438,0.08755299,91419.0,91415.0,0.06483529]
[1767522255635,0.03285864,91419.0,91414.0,0.05469567]
[1767522255842,0.02192,91419.0,91415.0,0.01093912]
[1767522256084,0.03285864,91419.0,91415.0,0.01093912]
[1767522256204,0.06563375,91417.0,91414.0,0.06563529]
[1767522256398,0.01093888,91417.0,91414.0,0.06563529]
[1767522256641,0.06563314,91418.0,91415.0,0.0546956]
[1767522256852,0.13403594,91419.0,91415.0,0.0656342]
[1767522257056,0.06840395,91419.0,91415.0,0.0656342]
[1767522257267,0.02192,91419.0,91415.0,0.0656342]
[1767522257469,0.02192,91419.0,91416.0,0.05469455]
[1767522257634,0.02192,91419.0,91416.0,0.06563376]
[1767522257835,0.08755235,91419.0,91415.0,0.06563465]
[1767522258006,0.08755201,91419.0,91415.0,0.01093912]
[1767522258202,0.02192,91419.0,91417.0,0.05469391]
[1767522258449,0.07661325,91419.0,91416.0,0.06563353]
[1767522258651,0.08755189,91419.0,91416.0,0.05469498]
[1767522258822,0.08755189,91419.0,91415.0,0.06563449]
[1767522259031,0.06563269,91418.0,91413.0,0.01093936]
[1767522259226,0.06563269,91418.0,91415.0,0.06563442]
[1767522259633,0.05469398,91418.0,91415.0,0.06563442]
[1767522259843,0.08755196,91419.0,91415.0,0.06563447]
[1767522260045,0.08755196,91419.0,91415.0,0.01093912]
[1767522260268,0.02192,91419.0,91416.0,0.010939]
[1767522260447,0.08755237,91419.0,91416.0,0.010939]
[1767522260647,0.02192,91419.0,91416.0,0.06563372]
[1767522260847,0.03285864,91419.0,91416.0,0.06563372]
[1767522261047,0.08755229,91419.0,91416.0,0.06563372]
[1767522262181,0.03285864,91419.0,91416.0,0.06563372]
[1767522262391,0.08755201,91419.0,91416.0,0.06563372]
[1767522262766,0.03285864,91419.0,91416.0,0.06563372]
[1767522263497,0.02192,91419.0,91417.0,0.05469431]
[1767522263868,0.08755194,91419.0,91415.0,0.06563371]
[1767522264312,0.0875523,91419.0,91416.0,0.06563384]
[1767522264617,0.07661357,91419.0,91415.0,0.0656347]
[1767522265014,0.07661357,91419.0,91416.0,0.054695]
[1767522265172,0.02192,91419.0,91417.0,0.05469403]
[1767522265681,0.07661327,91419.0,91416.0,0.065634]
[1767522265883,0.02192,91419.0,91416.0,0.065634]
[1767522266283,0.02192,91419.0,91416.0,0.06563284]
[1767522266490,0.02192,91419.0,91417.0,0.05469405]
[1767522267084,0.02192,91419.0,91417.0,0.05469438]
[1767522267589,0.02192,91419.0,91418.0,0.05469382]
[1767522267792,0.020921,91419.0,91417.0,0.05469438]
[1767522268428,0.07561437,91419.0,91416.0,0.06563287]
[1767522268674,0.020921,91419.0,91417.0,0.0546939]
[1767522268841,0.020921,91419.0,91418.0,0.05469382]
[1767522270441,0.020921,91419.0,91417.0,0.05469382]
[1767522270743,0.020921,91419.0,91418.0,0.05469382]
[1767522270957,0.020921,91419.0,91412.0,0.01093948]
[1767522270958,0.05469617,91415.0,91412.0,0.01093948]
[1767522271149,0.05469705,91413.0,91411.0,0.0002]
[1767522271310,0.06563545,91414.0,91411.0,0.05489796]
[1767522271641,0.06563545,91414.0,91410.0,0.05469814]
[1767522271845,0.06563545,91414.0,91411.0,0.0656371]
[1767522272073,0.05469573,91415.0,91411.0,0.0656371]
[1767522272282,0.06563403,91416.0,91412.0,0.05469722]
[1767522272471,0.06563517,91415.0,91411.0,0.0656371]
[1767522274733,0.05469625,91414.0,91411.0,0.0656371]
[1767522275368,0.06563517,91415.0,91411.0,0.0656371]
[1767522275547,0.06563517,91415.0,91412.0,0.05469722]
[1767522275748,0.06563517,91415.0,91411.0,0.0656371]
[1767522276161,0.06563517,91415.0,91411.0,0.0109396]
[1767522276360,0.01093912,91415.0,91410.0,0.01093972]
[1767522276546,0.01093912,91415.0,91412.0,0.05469725]
[1767522277041,0.010939,91416.0,91413.0,0.0530764]
[1767522277286,0.0656333,91417.0,91413.0,0.06401576]
[1767522277799,0.06563407,91416.0,91412.0,0.06563673]
[1767522277964,0.06563436,91417.0,91413.0,0.01093936]
[1767522278165,0.06563436,91417.0,91413.0,0.06563569]
[1767522278969,0.05469516,91416.0,91413.0,0.06563569]
[1767522279176,0.06563416,91416.0,91413.0,0.01093936]
[1767522279382,0.06563416,91416.0,91412.0,0.06563673]
[1767522279600,0.06563416,91416.0,91413.0,0.05469665]
[1767522279920,0.06563489,91415.0,91411.0,0.06563747]
[1767522280359,0.06563549,91414.0,91411.0,0.0109396]
[1767522280562,0.06563489,91415.0,91411.0,0.0109396]
[1767522280878,0.06563489,91415.0,91411.0,0.06563716]
[1767522281483,0.05469622,91414.0,91411.0,0.06563713]
[1767522281708,0.06563501,91415.0,91411.0,0.06563713]
[1767522282476,0.05469631,91414.0,91411.0,0.06563713]
[1767522282916,0.06563501,91415.0,91411.0,0.06563713]
[1767522283295,0.05469638,91414.0,91411.0,0.06563713]
[1767522283987,0.05469684,91413.0,91410.0,0.06563821]
[1767522284487,0.0656362,91413.0,91410.0,0.01093972]
[1767522284892,0.05469751,91412.0,91409.0,0.0656385]
[1767522285093,0.0656362,91413.0,91409.0,0.0656385]
[1767522285712,0.02192,91412.0,91408.0,0.05469925]
[1767522285893,0.06563874,91410.0,91407.0,0.01094008]
[1767522286096,0.06563874,91410.0,91401.0,0.04639134]
[1767522286097,0.06563157,91420.0,91410.0,0.04639134]
[1767522286296,0.01093888,91417.0,91413.0,0.05469646]
[1767522286631,0.06563307,91418.0,91414.0,0.06563527]
[1767522289242,0.05469466,91417.0,91414.0,0.06563527]
[1767522289739,0.05469444,91417.0,91414.0,0.01093924]
[1767522289948,0.06563332,91417.0,91413.0,0.06563582]
[1767522290121,0.01093888,91417.0,91414.0,0.06563538]
[1767522290307,0.06563307,91418.0,91414.0,0.06563538]
[1767522290642,0.06563307,91418.0,91415.0,0.05469559]
[1767522291164,0.03285864,91419.0,91416.0,0.06563373]
[1767522291371,0.02192,91419.0,91417.0,0.05469438]
[1767522291505,0.02192,91419.0,91416.0,0.06563373]
[1767522292575,0.07661371,91419.0,91416.0,0.010939]
[1767522292736,0.08755235,91419.0,91416.0,0.010939]
[1767522293854,0.08755235,91419.0,91415.0,0.06563466]
[1767522294334,0.06563278,91418.0,91415.0,0.01093912]
[1767522294541,0.01093876,91418.0,91415.0,0.01093912]
[1767522294856,0.06563272,91418.0,91415.0,0.01093912]
[1767522295246,0.06563272,91418.0,91415.0,0.0656345]
[1767522295647,0.08755235,91419.0,91415.0,0.0656345]
[1767522296050,0.08755235,91419.0,91416.0,0.05469488]
[1767522296449,0.08755235,91419.0,91415.0,0.0656345]
[1767522296969,0.05469394,91418.0,91415.0,0.0656345]
[1767522297331,0.0656327,91418.0,91415.0,0.0656345]
[1767522297776,0.01093876,91418.0,91415.0,0.0656345]
[1767522298390,0.06563265,91418.0,91415.0,0.0656345]
[1767522298991,0.08755235,91419.0,91415.0,0.0656345]
[1767522299230,0.02192,91419.0,91415.0,0.06563473]
[1767522299377,0.07661368,91419.0,91415.0,0.06563473]
[1767522299811,0.0546939,91418.0,91415.0,0.06563473]
[1767522300342,0.04912702,91415.0,91403.0,0.01114055]
[1767522300513,0.06563951,91409.0,91405.0,0.06564142]
[1767522300814,0.01093972,91410.0,91406.0,0.06564078]
[1767522301014,0.0109396,91411.0,91408.0,0.01093996]
[1767522301199,0.08755705,91412.0,91409.0,0.05469897]
[1767522301855,0.08755705,91412.0,91402.0,0.0001504]
[1767522301856,0.05470153,91406.0,91402.0,0.0001504]
[1767522302121,0.05470179,91405.0,91402.0,0.0001504]
[1767522302279,0.0547022,91404.0,91402.0,0.0001504]
[1767522302485,0.05470179,91405.0,91402.0,0.0001504]
[1767522303168,0.0547022,91404.0,91402.0,0.0001504]
[1767522303403,0.0547022,91404.0,91398.0,0.01114115]
[1767522303404,0.05470339,91402.0,91398.0,0.01114115]
[1767522303613,0.05470339,91402.0,91398.0,0.06584644]
[1767522303792,0.0658434,91403.0,91399.0,0.06564611]
[1767522304005,0.01094067,91402.0,91399.0,0.01094103]
[1767522304178,0.06564442,91402.0,91399.0,0.01094103]
[1767522304382,0.06564442,91402.0,91399.0,0.06564603]
[1767522304615,0.05470422,91401.0,91398.0,0.06584644]
[1767522304867,0.06564442,91402.0,91398.0,0.06584644]
[1767522305027,0.06564382,91403.0,91399.0,0.06564571]
[1767522305228,0.06564268,91404.0,91400.0,0.06564498]
[1767522306032,0.06564268,91404.0,91401.0,0.05470399]
[1767522306233,0.01094044,91404.0,91401.0,0.06564478]
[1767522306453,0.06564299,91405.0,91401.0,0.06564478]
[1767522306817,0.03285948,91412.0,91408.0,0.06563916]
[1767522307022,0.05469863,91410.0,91407.0,0.05470037]
[1767522307263,0.0656381,91411.0,91407.0,0.06564045]
[1767522307618,0.06563885,91410.0,91407.0,0.01094008]
[1767522307818,0.01093972,91410.0,91407.0,0.06564042]
[1767522308251,0.0656385,91410.0,91407.0,0.06564042]
[1767522309384,0.05469931,91409.0,91406.0,0.06564089]
[1767522309800,0.0656385,91410.0,91406.0,0.06564089]
[1767522309992,0.0109396,91411.0,91407.0,0.06559375]
[1767522310173,0.06563785,91411.0,91407.0,0.06559375]
[1767522310369,0.06563785,91411.0,91408.0,0.05469948]
[1767522310562,0.08755747,91412.0,91409.0,0.0546991]
[1767522311071,0.08755747,91412.0,91408.0,0.06563944]
[1767522311670,0.03285948,91412.0,91409.0,0.06563902]
[1767522312318,0.0875569,91412.0,91409.0,0.06563902]
[1767522312899,0.03285948,91412.0,91409.0,0.06563902]
[1767522313309,0.02192,91415.0,91413.0,0.05469678]
[1767522313624,0.02192,91415.0,91412.0,0.06563585]
[1767522313793,0.03285912,91415.0,91412.0,0.06563585]
[1767522314135,0.08755517,91415.0,91412.0,0.01093948]
[1767522314306,0.08755517,91415.0,91412.0,0.06563683]
[1767522314505,0.07661563,91415.0,91412.0,0.06563683]
[1767522315603,0.01093972,91410.0,91406.0,0.0109402]
[1767522315770,0.06563958,91409.0,91405.0,0.06564084]
[1767522316130,0.06563878,91410.0,91406.0,0.06564076]
[1767522316556,0.01093972,91410.0,91407.0,0.06563997]
[1767522316759,0.06563843,91410.0,91407.0,0.06563997]
[1767522316997,0.01,91407.0,91405.0,0.06564162]
[1767522317197,0.01,91407.0,91406.0,0.05470053]
[1767522317815,0.06563912,91409.0,91405.0,0.06564162]
[1767522318016,0.0546999,91408.0,91405.0,0.06564162]
[1767522318556,0.05470057,91407.0,91404.0,0.05470117]
[1767522319079,0.06563986,91408.0,91404.0,0.06564161]
[1767522319526,0.05470047,91407.0,91404.0,0.06564161]
[1767522319953,0.06563986,91408.0,91404.0,0.06564161]
[1767522320821,0.06563908,91409.0,91406.0,0.05470078]
[1767522321186,0.06563908,91409.0,91405.0,0.06564192]
[1767522321187,0.0547004,91407.0,91405.0,0.01094032]
[1767522321369,0.06563994,91408.0,91405.0,0.06564182]
[1767522321921,0.06564245,91405.0,91401.0,0.05470399]
[1767522322263,0.06464345,91405.0,91401.0,0.05470399]
[1767522322889,0.01094044,91404.0,91401.0,0.05470399]
[1767522323033,0.06464345,91405.0,91402.0,0.05470337]
[1767522323582,0.06464345,91405.0,91402.0,0.06564404]
[1767522324165,0.06464345,91405.0,91401.0,0.06564478]
[1767522324364,0.01094044,91404.0,91401.0,0.01094079]
[1767522324590,0.01094044,91404.0,91401.0,0.06564453]
[1767522325762,0.05470284,91403.0,91400.0,0.06564432]
[1767522325978,0.06564297,91404.0,91400.0,0.06564432]
[1767522326182,0.000999,91400.0,91399.0,0.06564504]
[1767522326386,0.01094067,91402.0,91399.0,0.06564504]
[1767522326580,0.01094055,91403.0,91400.0,0.06564528]
[1767522326927,0.01094067,91402.0,91399.0,0.06564621]
[1767522327126,0.000999,91400.0,91398.0,0.02212]
[1767522327250,0.05570402,91400.0,91398.0,0.02212]
[1767522327452,0.05470502,91400.0,91398.0,0.02212]
[1767522327888,0.05470483,91400.0,91398.0,0.02212]
[1767522328084,0.05470639,91397.0,91396.0,0.0002]
[1767522328769,0.01094103,91399.0,91396.0,0.0002]
[1767522328956,0.06564739,91399.0,91396.0,0.0002]
[1767522329147,0.06564739,91399.0,91396.0,0.06584833]
[1767522329353,0.01094103,91399.0,91397.0,0.0547063]
[1767522329730,0.06564483,91401.0,91398.0,0.05470575]
[1767522329932,0.06564446,91402.0,91398.0,0.0656469]
[1767522330147,0.06564508,91401.0,91397.0,0.06564763]
[1767522332266,0.06564606,91400.0,91396.0,0.06584782]
[1767522332624,0.06564606,91400.0,91397.0,0.05470612]
[1767522332839,0.01094103,91399.0,91396.0,0.0002]
[1767522333213,0.06564647,91399.0,91396.0,0.05490686]
[1767522333347,0.06564647,91399.0,91396.0,0.0002]
[1767522333550,0.05470639,91397.0,91395.0,0.0002]
[1767522333770,0.05470639,91397.0,91393.0,0.06564995]
[1767522333982,0.05470713,91396.0,91393.0,0.06564995]
[1767522334169,0.05470791,91395.0,91392.0,0.11142308]
[1767522334486,0.06564929,91395.0,91392.0,0.04577232]
[1767522334786,0.06564929,91395.0,91392.0,0.09988243]
[1767522335149,0.06564929,91395.0,91392.0,0.1108243]
[1767522335360,0.01,91392.0,91391.0,0.0002]
[1767522335561,0.05470938,91392.0,91391.0,0.0002]
[1767522335862,0.05470926,91393.0,91391.0,0.0002]
[1767522336349,0.06565089,91394.0,91391.0,0.0002]
[1767522336609,0.06601218,91394.0,91391.0,0.0002]
[1767522337035,0.05470925,91393.0,91391.0,0.0002]
[1767522337199,0.05371025,91393.0,91391.0,0.00015594]
[1767522337382,0.06601118,91394.0,91391.0,0.00015594]
[1767522337562,0.01130292,91394.0,91391.0,0.06580788]
[1767522337767,0.06601126,91394.0,91391.0,0.06580788]
[1767522337963,0.06601126,91394.0,91392.0,0.05470902]
[1767522337964,0.00036129,91394.0,91392.0,0.05470902]
[1767522339411,0.00036129,91394.0,91391.0,0.01109793]
[1767522339412,0.05506949,91394.0,91391.0,0.06580779]
[1767522339634,0.00036129,91394.0,91391.0,0.06580779]
[1767522339976,0.00036129,91394.0,91392.0,0.05470918]
[1767522340708,0.05506954,91394.0,91391.0,0.06580779]
[1767522341717,0.0547088,91393.0,91391.0,0.01109793]
[1767522341927,0.06601117,91394.0,91391.0,0.06580786]
[1767522342127,0.05470892,91393.0,91391.0,0.00015594]
[1767522342326,0.05470892,91393.0,91390.0,0.00023005]
[1767522342327,0.00084306,91391.0,91390.0,0.00023005]
[1767522342711,0.01094175,91393.0,91390.0,0.05494019]
[1767522342924,0.01094175,91393.0,91390.0,0.00023005]
[1767522343119,0.06565091,91393.0,91390.0,0.00023005]
[1767522343395,0.05470959,91392.0,91390.0,0.00023005]
[1767522343603,0.06565055,91393.0,91390.0,0.00023005]
[1767522343807,0.06565055,91393.0,91392.0,0.000156]
[1767522344011,0.05470948,91392.0,91390.0,0.00023005]
[1767522344229,0.05470998,91391.0,91390.0,5e-08]
[1767522344989,0.06565382,91389.0,91387.0,0.04577232]
[1767522345200,0.06565351,91389.0,91387.0,0.04577232]
[1767522346023,0.01094235,91388.0,91384.0,0.11157968]
[1767522346366,0.01094223,91389.0,91384.0,0.07878555]
[1767522346367,0.000613,91387.0,91384.0,0.07878555]
[1767522346648,0.0656545,91389.0,91385.0,0.11142806]
[1767522346849,0.06565458,91388.0,91385.0,0.11142806]
[1767522347055,0.06565458,91388.0,91385.0,0.05671503]
[1767522347194,0.01094235,91388.0,91385.0,0.11142827]
[1767522347403,0.0656545,91389.0,91385.0,0.11142827]
[1767522348033,0.06565167,91392.0,91389.0,0.000386]
[1767522348235,0.05471058,91390.0,91389.0,0.000386]
[1767522348686,0.05471058,91390.0,91388.0,0.01094235]
[1767522349492,0.06565214,91391.0,91388.0,0.06565383]
[1767522349940,0.01094199,91391.0,91389.0,0.05471111]
[1767522350179,0.01094199,91391.0,91388.0,0.06565383]
[1767522350384,0.06565138,91392.0,91391.0,0.000386]
[1767522350814,0.05471003,91391.0,91388.0,0.06565383]
[1767522351437,0.06565138,91392.0,91388.0,0.06565383]
[1767522351801,0.0547101,91391.0,91388.0,0.06565383]
[1767522352011,0.0547106,91390.0,91387.0,0.06565466]
[1767522352176,0.05471195,91388.0,91385.0,0.11142756]
[1767522352476,0.05471195,91388.0,91385.0,0.06565524]
[1767522352702,0.00999995,91385.0,91384.0,0.0001504]
[1767522353037,0.05471357,91385.0,91384.0,0.0001504]
[1767522353276,0.05471343,91386.0,91385.0,0.000386]
[1767522353730,0.05471343,91386.0,91384.0,0.0001504]
[1767522354173,0.06565462,91388.0,91384.0,0.01109323]
[1767522354313,0.06565462,91388.0,91386.0,0.000386]
[1767522354698,0.06565462,91388.0,91384.0,0.06580736]
[1767522354941,0.05471238,91387.0,91384.0,0.06580736]
[1767522355117,0.05471238,91387.0,91384.0,0.08772736]
[1767522355299,0.06565462,91388.0,91385.0,0.05471342]
[1767522355523,0.05432644,91387.0,91384.0,0.08772736]
[1767522355704,0.05471302,91386.0,91384.0,0.0220704]
[1767522356444,0.05471357,91385.0,91384.0,0.0210714]
[1767522356670,0.05471302,91386.0,91384.0,0.0210714]
[1767522356883,0.05471357,91385.0,91384.0,0.0210714]
[1767522357281,0.06565561,91386.0,91383.0,0.02192]
[1767522357833,0.01094259,91386.0,91383.0,0.03286295]
[1767522358226,0.05823255,91387.0,91384.0,0.06565684]
[1767522358867,0.01094247,91387.0,91384.0,0.06565684]
[1767522359712,0.04729008,91387.0,91384.0,0.06565684]
[1767522360114,0.04729008,91386.0,91385.0,0.05471357]
[1767522360320,0.04629108,91386.0,91385.0,0.05471357]
[1767522361508,0.04629108,91386.0,91384.0,0.06565684]
[1767522361735,0.04921608,91384.0,91383.0,0.06565756]
[1767522361932,0.04821708,91384.0,91383.0,0.06565756]
[1767522362143,0.0656553,91388.0,91384.0,0.06565648]
[1767522362305,0.0656552,91387.0,91384.0,0.06565648]
[1767522362486,0.05471309,91386.0,91383.0,0.06565758]
[1767522362927,0.0656552,91387.0,91384.0,0.05471395]
[1767522363524,0.0656552,91387.0,91383.0,0.06565758]
[1767522363722,0.01094247,91387.0,91384.0,0.01094283]
[1767522363925,0.06565534,91387.0,91384.0,0.01094283]
[1767522364337,0.01099895,91384.0,91382.0,0.0002]
[1767522364714,0.00999995,91384.0,91382.0,0.0002]
[1767522364915,0.06471464,91384.0,91382.0,0.0002]
[1767522365123,0.00999995,91384.0,91382.0,0.0002]
[1767522365348,0.06471432,91384.0,91382.0,0.0002]
[1767522365561,0.07565715,91384.0,91381.0,0.02192]
[1767522365762,0.07565715,91384.0,91380.0,0.06565877]
[1767522365967,0.07565715,91384.0,91380.0,0.08757957]
[1767522366173,0.0656572,91384.0,91380.0,0.08757957]
[1767522366587,0.06565819,91383.0,91380.0,0.02192]
[1767522366789,0.05471553,91382.0,91380.0,0.02192]
[1767522366993,0.0547161,91381.0,91380.0,0.02192]
[1767522367198,0.0656586,91382.0,91380.0,0.02192]
[1767522367397,0.0656586,91382.0,91379.0,0.05471706]
[1767522367531,0.01094307,91382.0,91380.0,0.02192]
[1767522367732,0.06565894,91382.0,91380.0,0.02192]
[1767522367952,0.06565878,91382.0,91379.0,0.05471704]
[1767522368153,0.06565878,91382.0,91380.0,0.02192]
[1767522368357,0.000799,91380.0,91378.0,0.06566097]
[1767522368676,0.000799,91380.0,91379.0,0.02192]
[1767522368817,0.06565852,91382.0,91379.0,0.02192]
[1767522369022,0.06565852,91382.0,91378.0,0.06566084]
[1767522369224,0.01094319,91381.0,91379.0,0.02192]
[1767522369520,0.01094319,91381.0,91378.0,0.01094355]
[1767522369718,0.0547161,91381.0,91379.0,0.02192]
[1767522369947,0.06565855,91382.0,91379.0,0.02192]
[1767522370302,0.06565871,91382.0,91379.0,0.03286343]
[1767522370501,0.06565871,91382.0,91378.0,0.06566078]
[1767522370502,0.01094319,91381.0,91378.0,0.06566078]
[1767522370709,0.05471597,91381.0,91379.0,0.08758041]
[1767522370909,0.05471597,91381.0,91379.0,0.02192]
[1767522371111,0.06565844,91382.0,91379.0,0.02192]
[1767522371774,0.06565958,91381.0,91378.0,0.08758088]
[1767522371986,0.05471657,91380.0,91378.0,0.02192]
[1767522372188,0.05471618,91381.0,91380.0,0.0002]
[1767522372411,0.06565937,91381.0,91378.0,0.02192]
[1767522372569,0.01094319,91381.0,91378.0,0.02192]
[1767522372769,0.01094343,91379.0,91378.0,0.02192]
[1767522373004,0.06566059,91379.0,91378.0,0.021121]
[1767522373451,0.06566059,91379.0,91378.0,0.01112105]
[1767522374154,0.06566059,91379.0,91375.0,0.06586339]
[1767522374155,0.05471881,91377.0,91375.0,0.0002]
[1767522374372,0.06566176,91378.0,91376.0,0.02192]
[1767522374752,0.06566176,91378.0,91375.0,0.0002]
[1767522374753,0.05471896,91376.0,91375.0,0.02212]
[1767522375021,0.05471896,91376.0,91375.0,0.0002]
[1767522375530,0.05371996,91376.0,91375.0,0.0002]
[1767522376171,0.05471836,91377.0,91375.0,0.0002]
[1767522376698,0.01094331,91380.0,91375.0,0.0002]
[1767522376974,0.06566037,91380.0,91377.0,0.01]
[1767522377626,0.06566037,91380.0,91377.0,0.06471818]
[1767522377825,0.06566026,91381.0,91377.0,0.07566185]
[1767522378023,0.01094319,91381.0,91378.0,0.06566086]
[1767522378244,0.06565937,91381.0,91378.0,0.01094355]
[1767522378524,0.11387708,91380.0,91377.0,0.01094367]
[1767522378663,0.05471721,91379.0,91373.0,0.23488477]
[1767522379018,0.06566064,91379.0,91375.0,0.05471909]
[1767522379308,0.05471784,91378.0,91375.0,0.05471909]
[1767522379454,0.05471784,91378.0,91374.0,0.05471968]
[1767522379664,0.06566139,91378.0,91375.0,0.01094391]
[1767522379868,0.06566139,91378.0,91374.0,0.06566371]
[1767522380593,0.06566139,91378.0,91374.0,0.06566382]
[1767522381040,0.06566139,91378.0,91375.0,0.05471952]
[1767522381256,0.06566139,91378.0,91374.0,0.06566382]
[1767522381770,0.05471839,91377.0,91374.0,0.06566382]
[1767522381982,0.06566206,91377.0,91373.0,0.07663957]
[1767522382116,0.06566206,91377.0,91373.0,0.08758372]
[1767522382316,0.06566306,91376.0,91373.0,0.03286415]
[1767522382658,0.01094139,91396.0,91386.0,0.01094259]
[1767522382797,0.01130292,91394.0,91390.0,0.01031593]
[1767522383001,0.01130292,91394.0,91391.0,0.06565141]
[1767522383002,0.00036129,91394.0,91391.0,0.06565141]
[1767522383331,0.00036129,91394.0,91392.0,0.05470908]
[1767522383497,0.00036129,91394.0,91391.0,0.06565141]
[1767522383701,0.06565064,91394.0,91390.0,0.04519137]
[1767522383916,0.06565064,91394.0,91390.0,0.05613348]
[1767522384125,0.06565064,91394.0,91390.0,0.11084357]
[1767522386113,0.054709,91393.0,91390.0,0.05613348]
[1767522386284,0.01094115,91398.0,91389.0,0.06565228]
[1767522386285,0.01094008,91407.0,91399.0,0.04519137]
[1767522386521,0.05470452,91401.0,91397.0,0.01094127]
[1767522386641,0.0547559,91401.0,91397.0,0.01094127]
[1767522387086,0.06564556,91400.0,91395.0,0.08756879]
[1767522387263,0.0109396,91411.0,91400.0,0.05301974]
[1767522387462,0.05470026,91408.0,91404.0,0.05465701]
[1767522387741,0.05470026,91408.0,91404.0,0.05461296]
[1767522388182,0.06564022,91408.0,91405.0,0.06564167]
[1767522388388,0.0109402,91406.0,91402.0,0.01094067]
[1767522388562,0.0109402,91406.0,91403.0,0.0656432]
[1767522388768,0.01094008,91407.0,91404.0,0.06564264]
[1767522389197,0.06563994,91408.0,91404.0,0.06564264]
[1767522390037,0.06564062,91407.0,91402.0,0.06564352]
[1767522390193,0.01093996,91408.0,91403.0,0.01094055]
[1767522390411,0.01093996,91408.0,91404.0,0.0547022]
[1767522390750,0.01093996,91408.0,91405.0,0.01094032]
[1767522391226,0.06563945,91410.0,91406.0,0.0547009]
[1767522391451,0.06563945,91410.0,91406.0,0.05465685]
[1767522391645,0.05469931,91409.0,91405.0,0.06564137]
[1767522391798,0.06563915,91409.0,91405.0,0.06564137]
[1767522392193,0.0109396,91411.0,91348.0,0.25557147]
[1767522392194,0.01094079,91401.0,91398.0,0.02192]
[1767522392416,0.06070932,91402.0,91398.0,0.03286115]
[1767522392824,0.11541328,91402.0,91398.0,0.08756668]
[1767522393336,0.10447206,91402.0,91399.0,0.06564595]
[1767522393538,0.04976865,91402.0,91399.0,0.06564595]
[1767522394212,0.10447226,91402.0,91399.0,0.06564595]
[1767522394596,0.11256571,91395.0,91391.0,0.01094199]
[1767522394817,0.11256571,91395.0,91392.0,0.0547093]
[1767522395019,0.31615388,91401.0,91395.0,0.000999]
[1767522395020,0.01094139,91396.0,91395.0,0.000999]
[1767522395636,0.06564844,91396.0,91393.0,0.06565052]
[1767522396800,0.06564844,91396.0,91391.0,0.06570294]
[1767522396801,0.05470822,91394.0,91391.0,0.06570294]
[1767522397374,0.05470758,91395.0,91391.0,0.06570294]
[1767522397956,0.06564909,91395.0,91391.0,0.06570294]
[1767522398134,0.06564909,91395.0,91392.0,0.05470906]
[1767522398385,0.01094139,91396.0,91393.0,0.0656503]
[1767522398769,0.01094151,91395.0,91392.0,0.01094187]
[1767522398924,0.01094151,91395.0,91392.0,0.06565125]
[1767522399135,0.06565029,91394.0,91391.0,5.138e-05]
[1767522399362,0.06565029,91394.0,91391.0,0.05476134]
[1767522399523,0.11256684,91394.0,91391.0,5.138e-05]
[1767522399984,0.05470895,91393.0,91391.0,5.138e-05]
[1767522400972,0.05785866,91390.0,91387.0,0.05471203]
[1767522401174,0.05471237,91387.0,91386.0,0.02192]
[1767522401379,0.06565567,91386.0,91382.0,0.07663489]
[1767522401576,0.06561057,91386.0,91383.0,0.05471473]
[1767522401977,0.01089749,91386.0,91383.0,0.06565768]
[1767522402195,0.06561047,91386.0,91383.0,0.06565768]
[1767522402423,0.01089749,91386.0,91383.0,0.06565768]
[1767522402559,0.06565496,91387.0,91383.0,0.06565768]
[1767522403593,0.06565496,91387.0,91384.0,0.05471416]
[1767522403799,0.06565496,91387.0,91383.0,0.06565768]
[1767522405267,0.06565496,91387.0,91384.0,0.06565666]
[1767522405433,0.01094247,91387.0,91384.0,0.06565666]
[1767522405642,0.06565487,91387.0,91384.0,0.06565666]
[1767522406097,0.06565425,91388.0,91384.0,0.06565666]
[1767522406302,0.05471242,91387.0,91384.0,0.06565666]
[1767522406508,0.06565425,91388.0,91384.0,0.06565666]
[1767522406919,0.06565504,91387.0,91384.0,0.01094283]
[1767522407263,0.01094247,91387.0,91384.0,0.01094283]
[1767522407641,0.01094247,91387.0,91383.0,0.06565661]
[1767522407844,0.06565543,91387.0,91383.0,0.06565661]
[1767522407992,0.06565565,91386.0,91382.0,0.01094307]